bitfinex-derivatives/quotes_BTCF0:USTF0_20240830
["timestamp","ask_amount","ask_price","bid_price","bid_amount"]
[1725011688023,0.17731001,59683.0,59682.0,0.787146]
[1725011688223,0.18401535,59683.0,59682.0,0.787146]
[1725011689917,0.05867655,59692.0,59691.0,0.16752]
[1725011690120,0.1942,59694.0,59693.0,0.083757]
[1725011690121,0.1903,59694.0,59693.0,0.083757]
[1725011690429,0.19700473,59694.0,59693.0,0.083757]
[1725011690820,0.28076073,59694.0,59693.0,0.083757]
[1725011691217,0.274056,59694.0,59693.0,0.083757]
[1725011691423,0.28076046,59694.0,59693.0,0.083757]
[1725011691618,0.28176046,59694.0,59693.0,0.084757]
[1725011691822,0.275056,59694.0,59693.0,0.084757]
[1725011692329,0.19800446,59694.0,59693.0,0.084757]
[1725011692723,0.19800446,59694.0,59693.0,0.0903426]
[1725011693729,0.19800446,59694.0,59693.0,0.2113426]
[1725011693924,0.28176046,59694.0,59693.0,0.2113426]
[1725011694226,0.03351573,59694.0,59693.0,0.2113426]
[1725011694433,0.083753,59697.0,59696.0,0.08375]
[1725011694631,0.083753,59697.0,59696.0,0.20375]
[1725011695822,0.083753,59697.0,59696.0,0.20475]
[1725011696219,0.083753,59697.0,59696.0,0.20575]
[1725011704034,0.2189149,59697.0,59696.0,0.20575]
[1725011704531,0.1351619,59697.0,59696.0,0.20575]
[1725011706434,0.14186649,59697.0,59696.0,0.20575]
[1725011707230,0.22561949,59697.0,59696.0,0.20575]
[1725011707636,0.2189149,59697.0,59696.0,0.20575]
[1725011707835,0.22561975,59697.0,59696.0,0.20575]
[1725011708031,0.22561975,59697.0,59696.0,0.08575]
[1725011708341,0.31937275,59697.0,59696.0,0.002]
[1725011710134,0.26796385,59697.0,59696.0,0.002]
[1725011710841,0.261259,59697.0,59696.0,0.002]
[1725011711740,0.26796402,59697.0,59696.0,0.002]
[1725011712243,0.10045802,59697.0,59696.0,0.002]
[1725011712840,0.27369177,59697.0,59696.0,0.002]
[1725011714538,0.26698675,59697.0,59696.0,0.002]
[1725011714749,0.27369194,59697.0,59696.0,0.002]
[1725011715446,0.36369194,59697.0,59696.0,0.002]
[1725011715651,0.42236849,59697.0,59696.0,0.002]
[1725011715837,1.60868149,59697.0,59696.0,1e-06]
[1725011718150,1.60868149,59697.0,59689.0,0.0039]
[1725011718151,0.335044,59690.0,59689.0,1e-06]
[1725011718453,0.925844,59690.0,59689.0,1e-06]
[1725011718748,1.85462574,59690.0,59689.0,1e-06]
[1725011718948,2.51471579,59690.0,59689.0,1e-06]
[1725011719156,2.45462574,59690.0,59689.0,1e-06]
[1725011719441,2.45562574,59690.0,59689.0,1e-06]
[1725011719746,2.33562574,59690.0,59689.0,1e-06]
[1725011720446,2.33562574,59690.0,59689.0,0.001001]
[1725011720645,2.45562574,59690.0,59689.0,0.001001]
[1725011722143,1.73562574,59690.0,59689.0,0.001001]
[1725011722335,1.85562574,59690.0,59689.0,0.001001]
[1725011723042,1.86144482,59690.0,59689.0,0.001001]
[1725011723246,1.23884482,59690.0,59689.0,0.001001]
[1725011723436,1.35884482,59690.0,59689.0,0.001001]
[1725011727341,1.35213963,59690.0,59689.0,0.001001]
[1725011727647,1.358846,59690.0,59689.0,0.001001]
[1725011730040,1.238846,59690.0,59689.0,0.001001]
[1725011730342,1.25679258,59690.0,59689.0,0.001001]
[1725011730848,1.25008621,59690.0,59689.0,0.001001]
[1725011731449,1.25679238,59690.0,59689.0,0.001001]
[1725011732945,0.89599238,59690.0,59689.0,0.001001]
[1725011733747,0.88928621,59690.0,59689.0,0.001001]
[1725011734454,0.89599236,59690.0,59689.0,0.001001]
[1725011735057,0.83731581,59690.0,59689.0,0.001001]
[1725011735258,0.62773573,59690.0,59689.0,0.001001]
[1725011735456,0.74773573,59690.0,59689.0,0.001001]
[1725011736055,0.83149673,59690.0,59689.0,0.001001]
[1725011737257,0.83149669,59690.0,59689.0,0.001001]
[1725011737559,0.89017517,59690.0,59689.0,0.001001]
[1725011740352,0.88346906,59690.0,59689.0,0.001001]
[1725011740550,0.96723006,59690.0,59689.0,0.001001]
[1725011741353,0.97393622,59690.0,59689.0,0.001001]
[1725011741549,0.251298,59687.0,59686.0,0.00025137]
[1725011741755,0.585064,59687.0,59686.0,0.00025137]
[1725011742060,1.74638248,59687.0,59686.0,0.00021137]
[1725011742253,1.74638248,59687.0,59686.0,3.7e-07]
[1725011742760,1.75408864,59687.0,59686.0,3.7e-07]
[1725011742954,1.63408864,59687.0,59686.0,3.7e-07]
[1725011743774,1.63508864,59687.0,59686.0,0.00100037]
[1725011744761,1.75508864,59687.0,59686.0,0.00100037]
[1725011746057,0.251319,59682.0,59681.0,0.00025137]
[1725011746263,0.83882516,59682.0,59681.0,0.00025137]
[1725011746461,0.89750364,59682.0,59681.0,0.00025137]
[1725011746965,0.89079748,59682.0,59681.0,0.00025137]
[1725011747170,0.89750445,59682.0,59681.0,0.00025137]
[1725011747463,0.89850445,59682.0,59681.0,0.00225137]
[1725011747764,0.90050445,59682.0,59681.0,0.00225137]
[1725011748364,0.90050445,59682.0,59681.0,0.00125137]
[1725011748567,0.90150445,59682.0,59681.0,0.00225137]
[1725011749064,0.98527745,59682.0,59681.0,0.00225137]
[1725011750161,0.99092205,59682.0,59681.0,0.00225137]
[1725011756570,0.98421508,59682.0,59681.0,0.00225137]
[1725011757674,0.99092207,59682.0,59681.0,0.00225137]
[1725011758662,0.98421508,59682.0,59681.0,0.00225137]
[1725011760778,0.99092208,59682.0,59681.0,0.00225137]
[1725011761867,0.98421508,59682.0,59681.0,0.00225137]
[1725011762469,0.99092221,59682.0,59681.0,0.00225137]
[1725011763075,0.99762935,59682.0,59681.0,0.00225137]
[1725011763462,1.00433649,59682.0,59681.0,0.00225137]
[1725011769776,0.99762935,59682.0,59681.0,0.00225137]
[1725011770573,1.06443161,59682.0,59681.0,0.00225137]
[1725011771673,0.98065861,59682.0,59681.0,0.00225137]
[1725011772679,1.05101734,59682.0,59681.0,0.00225137]
[1725011773482,1.04431037,59682.0,59681.0,0.00225137]
[1725011773868,0.68351037,59682.0,59681.0,0.00225137]
[1725011774164,0.98421508,59682.0,59681.0,0.00225137]
[1725011774369,1.04431037,59682.0,59681.0,0.00225137]
[1725011774577,1.05101746,59682.0,59681.0,0.00225137]
[1725011776574,0.69021746,59682.0,59681.0,0.00225137]
[1725011776774,0.99092217,59682.0,59681.0,0.00225137]
[1725011776978,1.05101746,59682.0,59681.0,0.00225137]
[1725011777476,0.99092217,59682.0,59681.0,0.00225137]
[1725011779279,0.90714917,59682.0,59681.0,0.00225137]
[1725011779683,0.78714917,59682.0,59681.0,0.00225137]
[1725011779875,0.90714917,59682.0,59681.0,0.00225137]
[1725011780677,0.90714905,59682.0,59681.0,0.00225137]
[1725011781675,0.90714905,59682.0,59637.0,0.21087128]
[1725011781676,0.083798,59664.0,59663.0,0.05011387]
[1725011781980,0.083798,59664.0,59659.0,0.06681849]
[1725011781981,0.12670697,59664.0,59659.0,0.06681849]
[1725011782182,0.3608,59663.0,59661.0,0.05012673]
[1725011782383,0.00670833,59662.0,59659.0,0.05012673]
[1725011782587,0.12,59660.0,59657.0,0.05012673]
[1725011782786,0.117,59658.0,59656.0,0.05012673]
[1725011782985,0.3608,59663.0,59656.0,0.05012673]
[1725011782986,0.36750833,59657.0,59656.0,0.05012673]
[1725011783186,0.57031733,59657.0,59656.0,0.00579009]
[1725011783385,0.57031733,59657.0,59655.0,0.00025137]
[1725011783580,0.083809,59656.0,59655.0,0.00025137]
[1725011783778,0.082809,59656.0,59655.0,0.00025137]
[1725011784686,0.081809,59656.0,59655.0,0.00025137]
[1725011785187,0.101809,59656.0,59655.0,0.00025137]
[1725011785375,0.084809,59656.0,59655.0,0.00025137]
[1725011786380,0.087809,59656.0,59655.0,0.00587362]
[1725011787088,0.171618,59656.0,59655.0,0.00587362]
[1725011787582,0.171618,59656.0,59655.0,0.00025137]
[1725011787784,0.275427,59656.0,59655.0,0.00025137]
[1725011788788,0.33413781,59656.0,59655.0,0.00025137]
[1725011788982,0.33413781,59656.0,59655.0,3.7e-07]
[1725011789191,0.33413781,59656.0,59641.0,0.0596]
[1725011789192,0.083829,59642.0,59641.0,0.0596]
[1725011789489,0.083823,59646.0,59634.0,0.36252]
[1725011789490,0.083839,59635.0,59634.0,0.36252]
[1725011789790,0.287678,59635.0,59634.0,0.36661073]
[1725011790486,0.282678,59635.0,59634.0,0.3608]
[1725011790675,0.167684,59633.0,59632.0,0.3213]
[1725011790880,0.072844,59631.0,59630.0,0.0576]
[1725011791075,0.072844,59631.0,59630.0,0.06327711]
[1725011791483,0.062844,59631.0,59630.0,0.06327711]
[1725011791688,0.062844,59631.0,59630.0,1.16635711]
[1725011792085,0.062844,59631.0,59630.0,1.29635711]
[1725011792288,0.063844,59631.0,59630.0,1.29635711]
[1725011792479,0.060844,59631.0,59630.0,1.29635711]
[1725011792883,0.06314439,59634.0,59630.0,0.19327711]
[1725011793105,0.083844,59631.0,59630.0,0.19327711]
[1725011793593,0.203844,59631.0,59630.0,0.57635711]
[1725011793793,0.204844,59631.0,59630.0,0.57935711]
[1725011793988,0.204844,59631.0,59630.0,0.07627711]
[1725011794291,0.21155564,59631.0,59630.0,0.07627711]
[1725011794689,0.65619964,59631.0,59630.0,0.013]
[1725011795191,0.53619964,59631.0,59630.0,0.013]
[1725011796590,0.529488,59631.0,59630.0,0.013]
[1725011796806,0.53620016,59631.0,59630.0,0.013]
[1725011797493,0.53620016,59631.0,59630.0,0.133]
[1725011798889,0.17540016,59631.0,59630.0,0.133]
[1725011799190,0.09155616,59631.0,59630.0,0.216846]
[1725011802883,0.09155616,59631.0,59630.0,0.013]
[1725011802884,0.17540016,59631.0,59630.0,0.013]
[1725011803089,0.168688,59631.0,59630.0,0.013]
[1725011803392,0.17539992,59631.0,59630.0,0.013]
[1725011803996,0.18539992,59631.0,59630.0,0.013]
[1725011805001,0.178688,59631.0,59630.0,0.013]
[1725011805492,0.18540035,59631.0,59630.0,0.013]
[1725011806092,0.37461416,59631.0,59630.0,0.013]
[1725011806395,0.37461398,59631.0,59630.0,0.013]
[1725011806597,0.49461398,59631.0,59630.0,0.013]
[1725011807291,0.48790181,59631.0,59630.0,0.013]
[1725011809385,0.49461399,59631.0,59630.0,0.013]
[1725011811103,0.49461396,59631.0,59630.0,0.013]
[1725011813296,0.57845796,59631.0,59630.0,0.013]
[1725011817293,0.58517035,59631.0,59630.0,0.013]
[1725011817598,0.5784582,59631.0,59630.0,0.013]
[1725011818198,0.5784582,59631.0,59630.0,0.06312673]
[1725011818405,0.5784582,59631.0,59630.0,0.013]
[1725011819313,0.5784582,59631.0,59630.0,0.06312673]
[1725011819602,0.58304027,59631.0,59630.0,0.013]
[1725011820413,0.50312,59630.0,59623.0,8.3e-07]
[1725011820711,0.50312,59630.0,59603.0,0.5419]
[1725011820712,0.08386,59620.0,59614.0,0.05020541]
[1725011820902,0.08386,59620.0,59609.0,0.05020541]
[1725011820903,0.167744,59611.0,59609.0,0.05020541]
[1725011821213,0.167744,59611.0,59597.0,0.058]
[1725011821214,0.251634,59607.0,59606.0,4.1e-07]
[1725011821405,0.251634,59607.0,59601.0,0.00025159]
[1725011821406,0.083885,59602.0,59601.0,0.00025159]
[1725011821607,0.64857,59602.0,59601.0,0.00025159]
[1725011821801,0.84038395,59602.0,59601.0,0.00025159]
[1725011822011,0.64221151,59602.0,59601.0,0.00025159]
[1725011822208,0.28141151,59602.0,59601.0,0.00025159]
[1725011822398,0.19852651,59602.0,59601.0,0.00025159]
[1725011822707,0.19952909,59602.0,59601.0,0.05925159]
[1725011823098,0.28341409,59602.0,59601.0,0.05925159]
[1725011823508,0.27669895,59602.0,59601.0,0.05925159]
[1725011823814,0.27769895,59602.0,59601.0,0.05925159]
[1725011824204,0.2844143,59602.0,59601.0,0.05925159]
[1725011824611,0.2844143,59602.0,59601.0,0.00125159]
[1725011826307,0.27769895,59602.0,59601.0,0.00125159]
[1725011827415,0.36158395,59602.0,59601.0,0.00125159]
[1725011827713,0.27769895,59602.0,59601.0,0.00125159]
[1725011828412,0.36158395,59602.0,59601.0,0.00125159]
[1725011828613,0.27769895,59602.0,59601.0,0.00125159]
[1725011829616,0.27769895,59602.0,59601.0,0.08513859]
[1725011829811,0.27769895,59602.0,59601.0,0.00125159]
[1725011831416,0.27769895,59602.0,59601.0,0.005794]
[1725011831717,0.28441436,59602.0,59601.0,0.005794]
[1725011833320,0.28441436,59602.0,59601.0,0.089681]
[1725011833902,0.28341436,59602.0,59601.0,0.088681]
[1725011834108,0.27769895,59602.0,59601.0,0.088681]
[1725011834711,0.28441436,59602.0,59601.0,0.088681]
[1725011835319,0.20052936,59602.0,59601.0,0.088681]
[1725011838018,0.20052879,59602.0,59601.0,0.088681]
[1725011839318,0.20052879,59602.0,59601.0,0.172568]
[1725011841019,0.20052879,59602.0,59601.0,0.309328]
[1725011842311,0.20052879,59602.0,59601.0,1.496575]
[1725011842721,0.00025159,59612.0,59611.0,0.167744]
[1725011842923,0.00696495,59612.0,59611.0,0.734672]
[1725011843220,0.19888887,59612.0,59611.0,1.837912]
[1725011843923,0.19988887,59612.0,59611.0,1.921784]
[1725011844112,0.20088887,59612.0,59611.0,1.921784]
[1725011845817,0.20088887,59612.0,59611.0,1.980084]
[1725011846118,0.20088887,59612.0,59611.0,0.502972]
[1725011846315,0.28475987,59612.0,59611.0,0.581392]
[1725011847119,0.28475987,59612.0,59611.0,0.3608]
[1725011849014,0.083874,59610.0,59609.0,0.08843496]
[1725011849213,0.09058736,59610.0,59609.0,0.44923496]
[1725011849414,0.27422832,59610.0,59609.0,0.44923496]
[1725011849621,0.27422832,59610.0,59609.0,0.3608]
[1725011850123,0.083877,59609.0,59608.0,0.083876]
[1725011850315,0.09059036,59609.0,59608.0,0.083876]
[1725011850515,0.27336294,59609.0,59608.0,0.083876]
[1725011850917,0.26664958,59609.0,59608.0,0.083876]
[1725011851230,0.26764958,59609.0,59608.0,0.083876]
[1725011851826,0.63516395,59609.0,59608.0,0.083876]
[1725011852820,0.63616395,59609.0,59608.0,0.083876]
[1725011853921,0.27536395,59609.0,59608.0,0.083876]
[1725011854729,0.63616395,59609.0,59608.0,0.083876]
[1725011857832,0.27536395,59609.0,59608.0,0.083876]
[1725011858032,0.63616395,59609.0,59608.0,0.083876]
[1725011859350,0.083881,59606.0,59605.0,0.083881]
[1725011859646,0.26568864,59606.0,59605.0,0.083881]
[1725011860536,0.26768864,59606.0,59605.0,0.083881]
[1725011860838,0.35156964,59606.0,59605.0,0.083881]
[1725011861035,0.35156985,59606.0,59605.0,0.083881]
[1725011862035,0.26768885,59606.0,59605.0,0.083881]
[1725011866557,0.26768685,59606.0,59605.0,0.083881]
[1725011867746,0.26097227,59606.0,59605.0,0.083881]
[1725011868651,0.26768686,59606.0,59605.0,0.083881]
[1725011868949,0.35156586,59606.0,59605.0,0.083881]
[1725011869141,0.35828045,59606.0,59605.0,0.083881]
[1725011870350,0.27440145,59606.0,59605.0,0.083881]
[1725011870951,0.35828045,59606.0,59605.0,0.083881]
[1725011871157,0.27440145,59606.0,59605.0,0.083881]
[1725011872041,0.10283815,59606.0,59605.0,0.203881]
[1725011874051,0.10283815,59606.0,59605.0,0.083881]
[1725011876551,0.09612356,59606.0,59605.0,0.083881]
[1725011877567,0.08940897,59606.0,59605.0,0.083881]
[1725011878049,0.09612354,59606.0,59605.0,0.083881]
[1725011880551,0.18000254,59606.0,59605.0,0.083881]
[1725011880768,0.167764,59604.0,59603.0,0.00447374]
[1725011880960,0.083885,59603.0,59602.0,0.083885]
[1725011881165,0.148185,59603.0,59602.0,0.083885]
[1725011881454,0.148185,59603.0,59601.0,0.00025159]
[1725011881455,0.16777,59602.0,59601.0,0.00025159]
[1725011881852,0.17777,59602.0,59601.0,0.00025159]
[1725011882054,0.16777,59602.0,59601.0,0.00025159]
[1725011882455,0.36721354,59602.0,59601.0,0.00025159]
[1725011882654,0.36392813,59602.0,59601.0,0.00025159]
[1725011882857,0.36492813,59602.0,59601.0,0.00025159]
[1725011883047,0.28104313,59602.0,59601.0,0.08413859]
[1725011883563,0.28204313,59602.0,59601.0,0.08413859]
[1725011884364,0.27532854,59602.0,59601.0,0.08413859]
[1725011884564,0.28204347,59602.0,59601.0,0.08413859]
[1725011886754,0.28204347,59602.0,59601.0,0.15117463]
[1725011887150,0.28204347,59602.0,59601.0,0.08413859]
[1725011887463,0.27532854,59602.0,59601.0,0.08413859]
[1725011887667,0.37921354,59602.0,59601.0,0.00025159]
[1725011888157,0.46981348,59602.0,59601.0,0.00025159]
[1725011889858,0.167788,59596.0,59595.0,1e-06]
[1725011890059,0.083908,59586.0,59581.0,0.0039]
[1725011890354,0.77751494,59596.0,59576.0,0.42783604]
[1725011890355,0.3608,59582.0,59576.0,0.42783604]
[1725011890670,0.08392,59577.0,59576.0,0.3608]
[1725011890857,0.09063494,59577.0,59576.0,0.3608]
[1725011891163,0.27659953,59577.0,59576.0,0.36531775]
[1725011892459,0.27659953,59577.0,59576.0,0.00451775]
[1725011892660,0.083926,59574.0,59572.0,0.083927]
[1725011892861,0.09064094,59573.0,59572.0,0.08858122]
[1725011893059,0.2683678,59573.0,59572.0,0.08858122]
[1725011893962,0.2683678,59573.0,59572.0,0.00465422]
[1725011894268,0.083927,59572.0,59571.0,0.00025159]
[1725011894464,0.09064194,59572.0,59571.0,0.00025159]
[1725011894669,0.28326136,59572.0,59571.0,0.00025159]
[1725011895274,0.28326429,59572.0,59571.0,0.00025159]
[1725011895660,0.28326429,59572.0,59571.0,0.00477566]
[1725011895968,0.28326429,59572.0,59571.0,0.00025159]
[1725011896866,0.28426429,59572.0,59571.0,0.00025159]
[1725011898067,0.28426429,59572.0,59571.0,0.00474926]
[1725011898861,0.27754642,59572.0,59571.0,0.00474926]
[1725011899058,0.36819131,59572.0,59571.0,0.00474926]
[1725011900367,0.37819131,59572.0,59571.0,0.00474926]
[1725011900568,0.36819131,59572.0,59571.0,0.00474926]
[1725011904868,0.36147342,59572.0,59571.0,0.00474926]
[1725011905062,0.3681917,59572.0,59571.0,0.00474926]
[1725011905962,0.7289917,59572.0,59571.0,0.00474926]
[1725011906564,0.8129187,59572.0,59571.0,0.00474926]
[1725011907470,1.1029187,59572.0,59571.0,0.00025159]
[1725011908179,1.09620042,59572.0,59571.0,0.00025159]
[1725011908373,1.10291926,59572.0,59571.0,0.00025159]
[1725011909175,0.45211926,59572.0,59571.0,0.00025159]
[1725011911478,0.44540042,59572.0,59571.0,0.00025159]
[1725011911881,0.45211906,59572.0,59571.0,0.00025159]
[1725011912183,0.28426506,59572.0,59571.0,0.08418059]
[1725011914691,0.27754642,59572.0,59571.0,0.08418059]
[1725011915779,0.28426439,59572.0,59571.0,0.08418059]
[1725011921484,0.28426439,59572.0,59571.0,0.15121663]
[1725011923389,0.20033739,59572.0,59571.0,0.23514563]
[1725011923594,0.20033739,59572.0,59571.0,0.16810959]
[1725011928089,0.20033739,59572.0,59571.0,0.28810959]
[1725011928484,0.20033739,59572.0,59571.0,0.37203859]
[1725011928687,0.20033739,59572.0,59571.0,1.47563859]
[1725011928894,0.0039,59581.0,59580.0,0.251748]
[1725011929081,0.087803,59590.0,59581.0,0.251745]
[1725011929283,0.083904,59589.0,59581.0,0.934365]
[1725011929493,0.19020361,59582.0,59581.0,1.534365]
[1725011929895,0.19691976,59582.0,59581.0,1.534365]
[1725011930083,0.19691976,59582.0,59581.0,1.824365]
[1725011930288,0.19691976,59582.0,59581.0,1.224365]
[1725011931195,0.19120361,59582.0,59581.0,1.14045]
[1725011931795,0.19791978,59582.0,59581.0,0.63693]
[1725011931993,0.19791978,59582.0,59581.0,1.14502245]
[1725011932695,0.19791978,59582.0,59581.0,0.64150245]
[1725011933394,0.19791978,59582.0,59581.0,0.52060245]
[1725011934693,0.19791978,59582.0,59581.0,0.88140245]
[1725011935309,0.19791978,59582.0,59581.0,0.79748745]
[1725011935502,0.19791978,59582.0,59581.0,0.50748745]
[1725011935702,0.19791978,59582.0,59581.0,0.64528745]
[1725011936405,0.19791978,59582.0,59581.0,0.58708745]
[1725011938208,0.19120361,59582.0,59581.0,0.58708745]
[1725011939211,0.19791983,59582.0,59581.0,0.58708745]
[1725011940621,0.19120361,59582.0,59581.0,0.58708745]
[1725011941208,0.19791983,59582.0,59581.0,0.58708745]
[1725011943225,0.19120361,59582.0,59581.0,0.58708745]
[1725011944106,0.19791984,59582.0,59581.0,0.58708745]
[1725011947908,0.19120361,59582.0,59581.0,0.58708745]
[1725011948213,0.19120361,59582.0,59581.0,0.22628745]
[1725011948814,0.19120361,59582.0,59581.0,0.58708745]
[1725011949511,0.19791984,59582.0,59581.0,0.58708745]
[1725011950109,0.19120361,59582.0,59581.0,0.70708745]
[1725011950309,0.19120361,59582.0,59581.0,0.34628745]
[1725011950512,0.19120361,59582.0,59581.0,0.70708745]
[1725011951615,0.19120361,59582.0,59581.0,0.77418379]
[1725011952411,0.19791984,59582.0,59581.0,0.70708745]
[1725011952715,0.21791984,59582.0,59581.0,0.70708745]
[1725011953718,0.21791984,59582.0,59581.0,0.34628745]
[1725011953918,0.21791984,59582.0,59581.0,0.70708745]
[1725011954314,0.21791984,59582.0,59581.0,0.34628745]
[1725011954517,0.21791984,59582.0,59581.0,0.70708745]
[1725011954718,0.21120361,59582.0,59581.0,0.34628745]
[1725011955029,0.21120361,59582.0,59581.0,0.70708745]
[1725011955321,0.21120361,59582.0,59581.0,0.79100245]
[1725011955519,0.21791983,59582.0,59581.0,1.47491745]
[1725011955711,0.21791983,59582.0,59581.0,2.18931134]
[1725011955911,0.17594685,59582.0,59581.0,1.98629051]
[1725011956119,0.17594685,59582.0,59581.0,1.59008231]
[1725011956316,0.17594685,59582.0,59581.0,1.46222703]
[1725011956517,0.17594685,59582.0,59581.0,1.59008378]
[1725011957018,0.16923063,59582.0,59581.0,1.59008378]
[1725011957220,0.17594668,59582.0,59581.0,1.59008378]
[1725011957525,0.17594668,59582.0,59581.0,1.5062942]
[1725011957730,0.17594668,59582.0,59581.0,2.1062942]
[1725011958221,0.00025159,59587.0,59586.0,0.287816]
[1725011958531,0.18661319,59587.0,59586.0,1.27995275]
[1725011958728,0.18661319,59587.0,59586.0,1.96386075]
[1725011961820,0.448576,59609.0,59592.0,0.251697]
[1725011962019,0.0626,59609.0,59608.0,0.203877]
[1725011962624,0.33395043,59609.0,59608.0,0.17021379]
[1725011962923,0.25307543,59609.0,59608.0,0.203877]
[1725011963326,0.33695043,59609.0,59608.0,0.203877]
[1725011963827,0.34795043,59609.0,59608.0,0.203877]
[1725011964020,0.34795043,59609.0,59608.0,0.083877]
[1725011967428,0.083878,59607.0,59606.0,0.3608]
[1725011967732,0.26539736,59607.0,59606.0,0.36546024]
[1725011968321,0.27211134,59607.0,59606.0,0.36546024]
[1725011968529,0.27211134,59607.0,59606.0,0.44933924]
[1725011969142,0.0513138,59607.0,59606.0,0.44933924]
[1725011969630,0.0653138,59607.0,59606.0,0.45033924]
[1725011969832,0.1491918,59607.0,59606.0,0.45033924]
[1725011972633,0.1491918,59607.0,59606.0,0.08953924]
[1725011972827,0.1491918,59607.0,59606.0,0.45033924]
[1725011975139,0.1491918,59607.0,59606.0,0.08953924]
[1725011975435,0.1491918,59607.0,59606.0,0.45033924]
[1725011976026,0.0653138,59607.0,59606.0,0.53421824]
[1725011977144,0.06302718,59607.0,59606.0,0.53421824]
[1725011977326,0.0563132,59607.0,59606.0,0.53421824]
[1725011977930,0.0513132,59607.0,59606.0,0.53421824]
[1725011979540,0.0513132,59607.0,59606.0,0.53321824]
[1725011979746,0.0513132,59607.0,59606.0,0.53421824]
[1725011980442,0.0513132,59607.0,59606.0,0.53321824]
[1725011982143,0.0513132,59607.0,59606.0,0.84791488]
[1725011982447,0.00025159,59614.0,59613.0,0.08387]
[1725011982741,0.00025159,59614.0,59613.0,0.37387]
[1725011983542,0.07015192,59614.0,59613.0,0.37387]
[1725011983749,0.47293757,59614.0,59613.0,0.02141618]
[1725011983935,0.55680557,59614.0,59613.0,0.10528618]
[1725011984244,0.56080557,59614.0,59613.0,0.10528618]
[1725011985444,0.56080557,59614.0,59613.0,0.10994089]
[1725011985640,0.55680557,59614.0,59613.0,0.10994089]
[1725011985943,0.49090524,59614.0,59613.0,0.24694089]
[1725011988244,0.56080557,59614.0,59613.0,0.24694089]
[1725011988742,0.56080557,59614.0,59613.0,0.13696]
[1725011989340,0.26815615,59614.0,59613.0,0.13696]
[1725011989643,0.15801992,59614.0,59613.0,0.13696]
[1725011989950,0.15801992,59614.0,59613.0,0.34083]
[1725011990448,0.08811959,59614.0,59613.0,0.34083]
[1725011990646,0.08811959,59614.0,59613.0,0.25696]
[1725011992445,0.09483288,59614.0,59613.0,0.25696]
[1725011993849,0.08811959,59614.0,59613.0,0.25696]
[1725011994449,0.09483289,59614.0,59613.0,0.25696]
[1725011995247,0.09483289,59614.0,59612.0,0.00453411]
[1725011995448,0.09483289,59614.0,59613.0,0.25696]
[1725011995752,0.09483324,59614.0,59613.0,0.25696]
[1725011996153,0.17870124,59614.0,59613.0,0.25696]
[1725011996455,0.09383324,59614.0,59613.0,0.25696]
[1725011996650,0.17770124,59614.0,59613.0,0.25696]
[1725011997257,0.09383324,59614.0,59613.0,0.25696]
[1725011997555,0.17770124,59614.0,59613.0,0.25696]
[1725011997752,0.17470124,59614.0,59613.0,0.25696]
[1725011997945,0.17870124,59614.0,59613.0,0.25696]
[1725012000548,0.17198759,59614.0,59613.0,0.25696]
[1725012001048,0.17198759,59614.0,59613.0,0.13696]
[1725012001049,0.17870121,59614.0,59613.0,0.13696]
[1725012001349,0.17870121,59614.0,59613.0,0.25696]
[1725012001549,0.09483321,59614.0,59613.0,0.25696]
[1725012001746,0.17870121,59614.0,59613.0,0.25696]
[1725012002143,0.17870121,59614.0,59613.0,0.13696]
[1725012002346,0.17870121,59614.0,59613.0,0.14115877]
[1725012002563,0.167742,59612.0,59611.0,0.340552]
[1725012003158,0.17445562,59612.0,59611.0,0.25668]
[1725012003363,0.17445562,59612.0,59611.0,0.12]
[1725012003553,0.083874,59611.0,59610.0,0.083874]
[1725012003749,0.167748,59611.0,59610.0,0.083874]
[1725012004158,0.17446162,59611.0,59610.0,0.083874]
[1725012004364,0.17196162,59611.0,59610.0,0.083874]
[1725012004553,0.251622,59610.0,59609.0,0.3608]
[1725012004754,0.17446162,59610.0,59609.0,0.3608]
[1725012005763,0.17446162,59610.0,59609.0,0.36533499]
[1725012007066,0.17446162,59610.0,59609.0,0.00453499]
[1725012007271,0.16775,59609.0,59608.0,0.25668]
[1725012007767,0.17446362,59609.0,59608.0,0.25668]
[1725012008359,0.17446362,59609.0,59608.0,0.26122295]
[1725012008966,0.17746362,59609.0,59608.0,0.26122295]
[1725012009170,0.53826362,59609.0,59608.0,0.12454295]
[1725012009376,0.74213862,59609.0,59608.0,0.07160105]
[1725012009664,0.80088143,59609.0,59608.0,0.00454295]
[1725012009872,0.167754,59608.0,59607.0,0.12]
[1725012010364,0.23321043,59608.0,59607.0,0.12]
[1725012010567,0.17446762,59608.0,59607.0,0.12]
[1725012010954,0.251634,59607.0,59606.0,0.0670581]
[1725012011160,0.251634,59607.0,59603.0,0.06730969]
[1725012011161,0.167764,59604.0,59603.0,0.06730969]
[1725012011367,0.25835962,59604.0,59603.0,0.12025159]
[1725012011965,0.88167962,59604.0,59603.0,0.00025159]
[1725012012268,0.88168072,59604.0,59603.0,0.00025159]
[1725012012866,0.89168072,59604.0,59603.0,0.00025159]
[1725012013166,1.24248072,59604.0,59603.0,0.00225159]
[1725012013359,1.25248072,59604.0,59603.0,0.00225159]
[1725012013564,1.25705361,59604.0,59603.0,0.00225159]
[1725012014273,1.31580764,59604.0,59603.0,0.00225159]
[1725012015362,1.30909292,59604.0,59603.0,0.00225159]
[1725012015864,1.31580804,59604.0,59603.0,0.00225159]
[1725012016370,1.30123515,59604.0,59603.0,0.00225159]
[1725012016564,0.79791515,59604.0,59603.0,0.00225159]
[1725012019274,0.80791515,59604.0,59603.0,0.00225159]
[1725012020469,1.99511715,59604.0,59603.0,0.00225159]
[1725012020669,1.99512356,59604.0,59603.0,0.00225159]
[1725012021471,0.251676,59597.0,59596.0,0.0039]
[1725012021680,0.167796,59593.0,59592.0,0.13672]
[1725012021870,0.17451112,59593.0,59592.0,0.25672]
[1725012022566,0.16651112,59593.0,59592.0,0.25672]
[1725012023174,0.1665119,59593.0,59592.0,0.25672]
[1725012024068,0.1665119,59593.0,59592.0,0.13672]
[1725012024269,0.1665119,59593.0,59592.0,0.14244998]
[1725012024573,0.1675119,59593.0,59592.0,0.14244998]
[1725012025568,0.1675119,59593.0,59592.0,0.00572998]
[1725012025765,0.083899,59592.0,59591.0,0.13672]
[1725012025973,0.0906149,59592.0,59591.0,0.13672]
[1725012026773,0.1745139,59592.0,59591.0,0.13672]
[1725012027775,0.083903,59589.0,59588.0,0.32503571]
[1725012027976,0.0906189,59589.0,59588.0,0.46735064]
[1725012028277,0.0906189,59589.0,59588.0,0.38344664]
[1725012028873,0.0916189,59589.0,59588.0,0.38344664]